Workbook

Sheet MSU
B1: Topi Moisio | E1: 27.6.1992 Tampere
B2: SUPERPESIS | E2: Runkosarja | I2: Kärkilyönnit (KL), pesänvälit | P2: Ylempi loppusarja | W2: Alempi loppusarja | AD2: Arvo-ottelut | AH2: Mitalit
B3: Vuosi | C3: Sija | D3: Seura | E3: OTT | F3: KUN | G3: LÖI | H3: TOI | I3: KL | J3: 0 > 1 | K3: 1 > 2 | L3: 2 > 3 | M3: 3 > k | N3: KL-% | P3: OTT | Q3: KUN | R3: LÖI | S3: TOI | T3: KL | U3: KL-% | W3: OTT | X3: KUN | Y3: LÖI | Z3: TOI | AA3: KL | AB3: KL-% | AD3: IL | AE3: LL | AF3: hSM | AG3: K | AH3: H | AI3: P
B4: 2009 | C4: 9. | D4: LeVi | F4: suomensarja
B5: 2010
B6: 2011 | C6: 7. | D6: JuNu | F6: suomensarja
B7: 2012 | C7: 8. | D7: JuNu | F7: suomensarja
B8: 2013 | C8: 8. | D8: JuNu | F8: suomensarja | O8: 73 | V8: 73 | AC8: 73
B9: 2016 | C9: 3. | D9: Manse PP | F9: ykköspesis | W9: 5 | X9: 0 | Y9: 0 | Z9: 0 | AA9: 13 | AB9: 46.4 %
B10: 2017 | C10: 4. | D10: Manse PP | F10: ykköspesis
B11: 2018 | C11: 3. | D11: Manse PP | F11: ykköspesis | W11: 5 | X11: 0 | Y11: 0 | Z11: 0 | AA11: 8 | AB11: 27.6 % | AC11: 29
B12: 2019 | C12: 4. | D12: Tarmo | F12: suomensarja | O12: 73 | V12: 73 | AC12: 73
B13: 2019 | C13: 1. | D13: Manse PP | F13: ykköspesis
B14: 2020 | C14: 1. | D14: Tarmo | F14: suomensarja
B15: 2021 | C15: 9. | D15: Tarmo | F15: ykköspesis
B16: 2022 | C16: 11. | D16: Tarmo | F16: ykköspesis
B17: Yhteensä | E17: =SUM(E5:E16) -> 0 | F17: 0 | G17: 0 | H17: 0 | I17: 0 | J17: 0 | K17: 0 | L17: 0 | M17: 0 | N17: 0.0 % | O17: =SUM(O16:O16) -> 0 | P17: =SUM(P5:P16) -> 0 | Q17: 0 | R17: 0 | S17: 0 | T17: 0 | U17: 0.0 % | V17: =SUM(V16:V16) -> 0 | W17: 10 | X17: 0 | Y17: 0 | Z17: 0 | AA17: 21 | AB17: 36.8 % | AC17: =SUM(AC16:AC16) -> 0 | AD17: 0 | AE17: 0 | AF17: 0 | AG17: 0 | AH17: 0 | AI17: 0
B18: Pesispörssi | D18: =SUM(F17:H17)+((I17-F17-G17)/3)+(E17/3)+(AD17*25)+(AE17*25)+(AF17*10)+(AG17*25)+(AH17*20)+(AI17*15) -> 0.0
B20: URA SUPERISSA | E20: OTT | F20: KUN | G20: LÖI | H20: TOI | I20: KL | K20: ka/L | L20: ka/T | M20: ka/KL | N20: KL-% | P20: ENSIMMÄISET RUNKOSARJASSA
B21: Runkosarja | P21: Ottelu
B22: Ylempi loppusarja | P22: Lyöty
B23: Alempi loppusarja | E23: =PRODUCT(W17) -> 10 | F23: =PRODUCT(X17) -> 0 | G23: =PRODUCT(Y17) -> 0 | H23: =PRODUCT(Z17) -> 0 | I23: =PRODUCT(AA17) -> 21 | K23: =PRODUCT((F23+G23)/E23) -> 0.00 | L23: =PRODUCT(H23/E23) -> 0.00 | M23: =PRODUCT(I23/E23) -> 2.10 | N23: =PRODUCT(I23/O23) -> 36.8 % | O23: 57 | P23: Tuotu
B24: KAIKKI | E24: =SUM(E21:E23) -> 10 | F24: =SUM(F21:F23) -> 0 | G24: =SUM(G21:G23) -> 0 | H24: =SUM(H21:H23) -> 0 | I24: =SUM(I21:I23) -> 21 | K24: =PRODUCT((F24+G24)/E24) -> 0.00 | L24: =PRODUCT(H24/E24) -> 0.00 | M24: =PRODUCT(I24/E24) -> 2.10 | N24: =PRODUCT(I24/O24) -> 36.8 % | O24: =SUM(O21:O23) -> 57 | P24: Kunnari
B26: Seurat | D26: PKP = Puurtilan Kisa-Pojat (1948), kasvattajaseura
D27: LeVi = Leppävirran Viri (1937)
D28: JuNu = Juvan Nuorisopesis (2002)
D29: Manse PP = Manse PP Edustus (2015)
D30: Tarmo = Ikaalisten Tarmo (1908)

Sheet MYP, MSS
B1: Topi Moisio | E1: 27.6.1992 Tampere
B2: YKKÖSPESIS | E2: Runkosarja | L2: Runkosarja TOP-10 | Q2: Jatkosarjat | X2: SUOMENSARJA | AA2: Runkosarja | AH2: Runkosarja TOP-10 | AM2: Jatkosarjat
B3: Vuosi | C3: Sija | D3: Seura | E3: OTT | F3: KUN | G3: LÖI | H3: TOI | I3: KL | J3: KL-% | L3: LÖI | M3: TOI | N3: L+T | O3: KL | Q3: OTT | R3: KUN | S3: LÖI | T3: TOI | U3: KL | V3: KL-% | X3: Vuosi | Y3: Sija | Z3: Seura | AA3: OTT | AB3: KUN | AC3: LÖI | AD3: TOI | AE3: KL | AF3: KL-% | AH3: LÖI | AI3: TOI | AJ3: L+T | AK3: KL | AM3: OTT | AN3: KUN | AO3: LÖI | AP3: TOI | AQ3: KL | AR3: KL-%
X4: 2009 | Y4: 9. | Z4: LeVi | AA4: 7 | AB4: 0 | AC4: 0 | AD4: 2 | AE4: 5 | AF4: 23.8 % | AG4: 21
X6: 2011 | Y6: 7. | Z6: JuNu | AA6: 11 | AB6: 1 | AC6: 3 | AD6: 17 | AE6: 45 | AF6: 56.3 % | AG6: 80
X7: 2012 | Y7: 8. | Z7: JuNu | AA7: 10 | AB7: 1 | AC7: 4 | AD7: 15 | AE7: 42 | AF7: 67.7 % | AG7: 62
X8: 2013 | Y8: 8. | Z8: JuNu | AA8: 13 | AB8: 0 | AC8: 3 | AD8: 11 | AE8: 49 | AF8: 59.8 % | AG8: 82
B10: 2016 | C10: 3. | D10: Manse PP | E10: 24 | F10: 1 | G10: 4 | H10: 14 | I10: 33 | J10: 32.0 % | K10: 103 | Q10: 4 | R10: 0 | S10: 1 | T10: 1 | U10: 9 | V10: 34.6 % | W10: 29
B11: 2017 | C11: 4. | D11: Manse PP | E11: 24 | F11: 0 | G11: 6 | H11: 6 | I11: 32 | J11: 26.0 % | K11: 123 | Q11: 3 | R11: 0 | S11: 0 | T11: 2 | U11: 8 | V11: 72.7 % | W11: 11
B12: 2018 | C12: 3. | D12: Manse PP | E12: 21 | F12: 0 | G12: 3 | H12: 18 | I12: 56 | J12: 42.1 % | K12: 133 | Q12: 5 | R12: 0 | S12: 0 | T12: 1 | U12: 15 | V12: 45.5 % | W12: 33
B13: 2019 | C13: 1. | D13: Manse PP | E13: 6 | F13: 0 | G13: 2 | H13: 3 | I13: 15 | J13: 40.5 % | K13: 37 | X13: 2019 | Y13: 4. | Z13: Tarmo | AA13: 10 | AB13: 1 | AC13: 4 | AD13: 23 | AE13: 64 | AF13: 71.1 % | AG13: 90 | AM13: 2 | AN13: 1 | AO13: 2 | AP13: 3 | AQ13: 11 | AR13: 68.8 % | AS13: 16
X14: 2020 | Y14: 1. | Z14: Tarmo | AA14: 4 | AB14: 1 | AC14: 5 | AD14: 12 | AE14: 28 | AF14: 75.7 % | AG14: 37 | AM14: 4 | AN14: 0 | AO14: 1 | AP14: 6 | AQ14: 15 | AR14: 68.2 % | AS14: 22
B15: 2021 | C15: 9. | D15: Tarmo | E15: 22 | F15: 1 | G15: 1 | H15: 16 | I15: 102 | J15: 58.3 % | K15: 175 | O15: 7. | Q15: 2 | R15: 0 | S15: 0 | T15: 4 | U15: 10 | V15: 58.8 % | W15: 17
B16: 2022 | C16: 11. | D16: Tarmo | E16: 1 | F16: 0 | G16: 1 | H16: 1 | I16: 3 | J16: 60.0 % | K16: 5 | Q16: 2 | R16: 0 | S16: 0 | T16: 0 | U16: 2 | V16: 33.3 % | W16: 6
B17: YHTEENSÄ | E17: =SUM(E4:E16) -> 98 | F17: =SUM(F4:F16) -> 2 | G17: =SUM(G4:G16) -> 17 | H17: =SUM(H4:H16) -> 58 | I17: =SUM(I4:I16) -> 241 | J17: =PRODUCT(I17/K17) -> 41.8 % | K17: =SUM(K4:K16) -> 576 | Q17: =SUM(Q4:Q16) -> 16 | R17: =SUM(R4:R16) -> 0 | S17: =SUM(S4:S16) -> 1 | T17: =SUM(T4:T16) -> 8 | U17: =SUM(U4:U16) -> 44 | V17: =PRODUCT(U17/W17) -> 45.8 % | W17: =SUM(W4:W16) -> 96 | X17: YHTEENSÄ | AA17: =SUM(AA4:AA16) -> 55 | AB17: =SUM(AB4:AB16) -> 4 | AC17: =SUM(AC4:AC16) -> 19 | AD17: =SUM(AD4:AD16) -> 80 | AE17: =SUM(AE4:AE16) -> 233 | AF17: =PRODUCT(AE17/AG17) -> 62.6 % | AG17: =SUM(AG4:AG16) -> 372 | AM17: =SUM(AM4:AM16) -> 6 | AN17: =SUM(AN4:AN16) -> 1 | AO17: =SUM(AO4:AO16) -> 3 | AP17: =SUM(AP4:AP16) -> 9 | AQ17: =SUM(AQ4:AQ16) -> 26 | AR17: =PRODUCT(AQ17/AS17) -> 68.4 % | AS17: =SUM(AS4:AS16) -> 38
B19: KAIKKI OTTELUT | E19: OTT | F19: KUN | G19: LÖI | H19: TOI | I19: KL | J19: KL-% | L19: ka/L | M19: ka/T | N19: ka/l+t | O19: ka/kl | R19: Seurat | T19: PKP = Puurtilan Kisa-Pojat (1948), kasvattajaseura
B20: SUPERPESIS | E20: 10 | F20: 0 | G20: 0 | H20: 0 | I20: 21 | J20: 36.8 % | K20: =PRODUCT(I20/J20) -> 57.06521739 | L20: =PRODUCT((F20+G20)/E20) -> 0.00 | M20: =PRODUCT(H20/E20) -> 0.00 | N20: =PRODUCT((F20+G20+H20)/E20) -> 0.00 | O20: =PRODUCT(I20/E20) -> 2.10 | T20: LeVi = Leppävirran Viri (1937)
B21: YKKÖSPESIS | E21: =PRODUCT(E17+Q17) -> 114 | F21: =PRODUCT(F17+R17) -> 2 | G21: =PRODUCT(G17+S17) -> 18 | H21: =PRODUCT(H17+T17) -> 66 | I21: =PRODUCT(I17+U17) -> 285 | J21: =PRODUCT(I21/K21) -> 42.4 % | K21: =PRODUCT(K17+W17) -> 672 | L21: =PRODUCT((F21+G21)/E21) -> 0.18 | M21: =PRODUCT(H21/E21) -> 0.58 | N21: =PRODUCT((F21+G21+H21)/E21) -> 0.75 | O21: =PRODUCT(I21/E21) -> 2.50 | T21: JuNu = Juvan Nuorisopesis (2002)
B22: SUOMENSARJA | E22: =PRODUCT(AA17+AM17) -> 61 | F22: =PRODUCT(AB17+AN17) -> 5 | G22: =PRODUCT(AC17+AO17) -> 22 | H22: =PRODUCT(AD17+AP17) -> 89 | I22: =PRODUCT(AE17+AQ17) -> 259 | J22: =PRODUCT(I22/K22) -> 63.2 % | K22: =PRODUCT(AG17+AS17) -> 410 | L22: =PRODUCT((F22+G22)/E22) -> 0.44 | M22: =PRODUCT(H22/E22) -> 1.46 | N22: =PRODUCT((F22+G22+H22)/E22) -> 1.90 | O22: =PRODUCT(I22/E22) -> 4.25 | T22: Manse PP = Manse PP Edustus (2015)
B23: YHTEENSÄ | E23: =SUM(E20:E22) -> 185 | F23: =SUM(F20:F22) -> 7 | G23: 40 | H23: 155 | I23: 565 | J23: =PRODUCT(I23/K23) -> 49.6 % | K23: =SUM(K20:K22) -> 1139.065217 | L23: =PRODUCT((F23+G23)/E23) -> 0.25 | M23: =PRODUCT(H23/E23) -> 0.84 | N23: =PRODUCT((F23+G23+H23)/E23) -> 1.09 | O23: =PRODUCT(I23/E23) -> 3.05 | T23: Tarmo = Ikaalisten Tarmo (1908)
